fUSD/lending_fUSD_20250124
["ID","MTS","AMOUNT","RATE_DAILY","PERIOD"]
[350232388,1737721841113,-500.0,0.00018472,2]
[350232389,1737721841123,-500.0,0.00018472,2]
[350232390,1737721841132,-500.0,0.00018472,2]
[350232391,1737721841142,-323.22304959,0.00018472,2]
[350232392,1737721841151,-682.09,0.00018472,2]
[350232393,1737721841160,-544.86,0.00018472,2]
[350232394,1737721841169,-500.0,0.00018472,2]
[350232395,1737721841179,-500.0,0.00018472,2]
[350232396,1737721841189,-500.0,0.00018472,2]
[350232397,1737721841198,-797.48,0.00018472,2]
[350232398,1737721841209,-872.11,0.00018472,2]
[350232399,1737721841219,-500.0,0.00018472,2]
[350232400,1737721841229,-500.0,0.00018472,2]
[350232401,1737721841239,-500.0,0.00018472,2]
[350232402,1737721841248,-500.0,0.00018472,2]
[350232403,1737721841258,-500.0,0.00018472,2]
[350232404,1737721841267,-500.0,0.00018472,2]
[350232405,1737721841277,-500.0,0.00018472,2]
[350232406,1737721841287,-500.0,0.00018472,2]
[350232407,1737721841296,-636.1982872,0.00018472,2]
[350232408,1737721841306,-501.71,0.00018472,2]
[350232409,1737721841317,-500.0,0.00018472,2]
[350232410,1737721841327,-500.0,0.00018472,2]
[350232411,1737721841336,-500.0,0.00018472,2]
[350232412,1737721841346,-597.33,0.00018472,2]
[350232413,1737721841355,-500.48382218,0.00018472,2]
[350232414,1737721841364,-500.0,0.00018472,2]
[350232415,1737721841374,-500.0,0.00018472,2]
[350232416,1737721841384,-939.11,0.00018472,2]
[350232417,1737721841393,-948.11,0.00018472,2]
[350232418,1737721841402,-500.0,0.00018472,2]
[350232419,1737721841411,-1128.56,0.00018472,2]
[350232420,1737721841421,-500.0,0.00018472,2]
[350232421,1737721841429,-500.0,0.00018472,2]
[350232422,1737721841439,-500.0,0.00018472,2]
[350232423,1737721841449,-775.88,0.00018472,2]
[350232424,1737721841458,-395.90729661,0.00018472,2]
[350232425,1737721841468,-500.0,0.00018472,2]
[350232426,1737721841477,-500.0,0.00018472,2]
[350232427,1737721841486,-500.0,0.00018472,2]
[350232428,1737721841496,-500.0,0.00018472,2]
[350232429,1737721841505,-500.0,0.00018472,2]
[350232430,1737721841515,-1250.96,0.00018472,2]
[350232431,1737721841524,-500.0,0.00018472,2]
[350232432,1737721841534,-500.0,0.00018472,2]
[350232433,1737721841543,-801.36,0.00018472,2]
[350232434,1737721841553,-500.0,0.00018472,2]
[350232435,1737721841563,-500.0,0.00018472,2]
[350232436,1737721841572,-500.0,0.00018472,2]
[350232437,1737721841703,-500.0,0.00018472,2]
[350232438,1737721841712,-500.0,0.00018472,2]
[350232439,1737721841722,-747.52,0.00018472,2]
[350232440,1737721841731,-518.83,0.00018472,2]
[350232441,1737721841740,-629.87559363,0.00018472,2]
[350232442,1737721841749,-933.9,0.00018472,2]
[350232443,1737721841758,-741.82,0.00018472,2]
[350232444,1737721841768,-500.0,0.00018472,2]
[350232445,1737721841776,-673.1,0.00018472,2]
[350232446,1737721841786,-655.64,0.00018472,2]
[350232447,1737721841794,-641.15,0.00018472,2]
[350232448,1737721841803,-500.0,0.00018472,2]
[350232449,1737721841813,-500.0,0.00018472,2]
[350232450,1737721841823,-500.0,0.00018472,2]
[350232451,1737721841831,-500.0,0.00018472,2]
[350232452,1737721841841,-618.14,0.00018472,2]
[350232453,1737721841850,-813.5,0.00018472,2]
[350232454,1737721841859,-500.0,0.00018472,2]
[350232455,1737721841868,-1845.26,0.00018472,2]
[350232456,1737721841880,-211.83435501,0.00018472,2]
[350232457,1737721841890,-492.31357571,0.00018472,2]
[350232458,1737721841900,-503.17159222,0.00018472,2]
[350232459,1737721841909,-500.0,0.00018472,2]
[350232460,1737721841919,-2879.68,0.00018472,2]
[350232461,1737721841928,-500.0,0.00018472,2]
[350232462,1737721841937,-500.0,0.00018472,2]
[350232463,1737721841948,-500.0,0.00018472,2]
[350232464,1737721841959,-747.1,0.00018472,2]
[350232465,1737721841968,-1324.83,0.00018472,2]
[350232466,1737721841978,-2114.72,0.00018472,2]
[350232467,1737721841988,-616.82,0.00018472,2]
[350232468,1737721841999,-658.3,0.00018472,2]
[350232469,1737721842009,-500.0,0.00018472,2]
[350232470,1737721842019,-510.46,0.00018472,2]
[350232471,1737721842028,-5699.41,0.00018472,2]
[350232472,1737721842037,-500.0,0.00018472,2]
[350232473,1737721842046,-500.0,0.00018472,2]
[350232474,1737721842055,-500.0,0.00018472,2]
[350232475,1737721842065,-500.0,0.00018472,2]
[350232476,1737721842074,-500.0,0.00018472,2]
[350232477,1737721842084,-3266.07,0.00018472,2]
[350232478,1737721842094,-4495.46,0.00018472,2]
[350232479,1737721842104,-500.0,0.00018472,2]
[350232480,1737721842113,-1464.57,0.00018472,2]
[350232481,1737721842123,-500.0,0.00018472,2]
[350232482,1737721842132,-501.82926816,0.00018472,2]
[350232483,1737721842142,-500.0,0.00018472,2]
[350232484,1737721842152,-2067.16,0.00018472,2]
[350232485,1737721842161,-500.0,0.00018472,2]
[350232486,1737721842170,-500.0,0.00018472,2]
[350232487,1737721842180,-862.48,0.00018472,2]
[350232489,1737721842189,-500.0,0.00018472,2]
[350232491,1737721842198,-500.0,0.00018472,2]
[350232492,1737721842207,-3255.78,0.00018472,2]
[350232493,1737721842216,-565.53,0.00018472,2]
[350232494,1737721842226,-678.69,0.00018472,2]
[350232495,1737721842235,-14311.91,0.00018472,2]
[350232496,1737721842244,-500.0,0.00018472,2]
[350232497,1737721842253,-1204.69,0.00018472,2]
[350232498,1737721842263,-542.12,0.00018472,2]
[350232499,1737721842272,-612.81,0.00018472,2]
[350232500,1737721842282,-500.0,0.00018472,2]
[350232501,1737721842291,-500.0,0.00018472,2]
[350232503,1737721842301,-554.16,0.00018472,2]
[350232504,1737721842311,-3038.65,0.00018472,2]
[350232505,1737721842321,-974.18,0.00018472,2]
[350232506,1737721842330,-500.0,0.00018472,2]
[350232507,1737721842339,-594.04478226,0.00018472,2]
[350232508,1737721842349,-531.47,0.00018472,2]
[350232509,1737721842358,-500.0,0.00018472,2]
[350232510,1737721842368,-172.04766848,0.00018472,2]
[350232511,1737721842378,-770.79,0.00018472,2]
[350232512,1737721842387,-500.0,0.00018472,2]
[350232513,1737721842398,-500.0,0.00018472,2]
[350232514,1737721842407,-500.0,0.00018473,2]
[350232515,1737721842417,-500.0,0.00018473,2]
[350232516,1737721842426,-500.0,0.00018473,2]
[350232517,1737721842436,-500.0,0.00018473,2]
[350232518,1737721842446,-500.0,0.00018473,2]
[350232519,1737721842455,-500.0,0.00018473,2]
[350232520,1737721842464,-500.0,0.00018473,2]
[350232521,1737721842473,-500.0,0.00018473,2]
[350232522,1737721842483,-500.0,0.00018473,2]
[350232523,1737721842492,-371.73760322,0.00018473,2]
[350232524,1737721842501,-500.0,0.00018473,2]
[350232525,1737721842511,-500.0,0.00018473,2]
[350232526,1737721842520,-516.04565291,0.00018473,2]
[350232527,1737721842531,-500.0,0.00018473,2]
[350232528,1737721842540,-497.09906104,0.00018473,2]
[350232529,1737721842549,-500.0,0.00018473,2]
[350232530,1737721842559,-259.13604859,0.00018473,2]
[350232531,1737721842569,-500.0,0.00018473,2]
[350232532,1737721842578,-200.0,0.00018473,2]
[350232533,1737721842588,-500.0,0.00018473,2]
[350232534,1737721842597,-514.01346325,0.00018473,2]
[350232535,1737721842607,-500.0,0.00018473,2]
[350232536,1737721842617,-500.0,0.00018473,2]
[350232537,1737721842627,-500.0,0.00018473,2]
[350232538,1737721842636,-500.0,0.00018473,2]
[350232540,1737721842646,-500.0,0.00018473,2]
[350232542,1737721842655,-500.0,0.00018473,2]
[350232544,1737721842665,-500.0,0.00018473,2]
[350232547,1737721842674,-500.0,0.00018473,2]
[350232548,1737721842685,-500.0,0.00018473,2]
[350232550,1737721842697,-500.0,0.00018473,2]
[350232552,1737721842707,-527.03441208,0.00018473,2]
[350232553,1737721842716,-279.39187718,0.00018473,2]
[350232554,1737721842725,-500.0,0.00018473,2]
[350232555,1737721842735,-366.83489419,0.00018473,2]
[350232556,1737721842744,-500.0,0.00018473,2]
[350232557,1737721842753,-500.0,0.00018473,2]
[350232558,1737721842762,-500.0,0.00018473,2]
[350232560,1737721842771,-500.0,0.00018473,2]
[350232562,1737721842782,-500.0,0.00018473,2]
[350232564,1737721842792,-500.0,0.00018473,2]
[350232566,1737721842801,-500.0,0.00018473,2]
[350232568,1737721842812,-500.0,0.00018473,2]
[350232570,1737721842822,-500.0,0.00018473,2]
[350232572,1737721842831,-641.91,0.00018473,2]
[350232574,1737721842840,-500.0,0.00018473,2]
[350232576,1737721842850,-500.0,0.00018473,2]
[350232577,1737721842859,-500.0,0.00018473,2]
[350232579,1737721842868,-500.0,0.00018473,2]
[350232581,1737721842880,-500.0,0.00018473,2]
[350232583,1737721842890,-460.02124395,0.00018473,2]
[350232584,1737721842899,-500.0,0.00018473,2]
[350232585,1737721842908,-500.0,0.00018473,2]
[350232586,1737721842918,-501.6426377,0.00018473,2]
[350232587,1737721842927,-500.0,0.00018473,2]
[350232588,1737721842935,-500.0,0.00018473,2]
[350232589,1737721842944,-500.0,0.00018473,2]
[350232590,1737721842954,-500.0,0.00018473,2]
[350232592,1737721842964,-500.0,0.00018473,2]
[350232593,1737721842973,-494.0,0.00018473,2]
[350232595,1737721842983,-500.0,0.00018473,2]
[350232597,1737721842992,-500.0,0.00018473,2]
[350232599,1737721843001,-500.0,0.00018473,2]
[350232601,1737721843010,-373.51941706,0.00018473,2]
[350232602,1737721843019,-500.0,0.00018473,2]
[350232603,1737721843028,-500.0,0.00018473,2]
[350232604,1737721843037,-500.0,0.00018473,2]
[350232605,1737721843048,-500.0,0.00018473,2]
[350232606,1737721843057,-500.0,0.00018473,2]
[350232607,1737721843067,-500.0,0.00018473,2]
[350232608,1737721843077,-500.0,0.00018473,2]
[350232609,1737721843087,-500.0,0.00018473,2]
[350232610,1737721843097,-500.0,0.00018473,2]
[350232611,1737721843106,-500.0,0.00018473,2]
[350232612,1737721843115,-500.0,0.00018473,2]
[350232613,1737721843127,-500.0,0.00018473,2]
[350232614,1737721843136,-500.0,0.00018473,2]
[350232615,1737721843145,-500.0,0.00018473,2]
[350232616,1737721843154,-510.75,0.00018473,2]
[350232617,1737721843164,-500.0,0.00018473,2]
[350232618,1737721843173,-500.0,0.00018473,2]
[350232620,1737721843182,-500.0,0.00018473,2]
[350232621,1737721843191,-500.0,0.00018473,2]
[350232622,1737721843200,-500.0,0.00018473,2]
[350232623,1737721843207,-500.0,0.00018473,2]
[350232624,1737721843215,-508.02090311,0.00018473,2]
[350232625,1737721843224,-578.27,0.00018473,2]
[350232626,1737721843232,-500.0,0.00018473,2]
[350232627,1737721843241,-500.0,0.00018473,2]
[350232628,1737721843251,-500.0,0.00018473,2]
[350232629,1737721843260,-500.0,0.00018473,2]
[350232630,1737721843269,-500.0,0.00018473,2]
[350232631,1737721843279,-500.0,0.00018473,2]
[350232632,1737721843288,-500.0,0.00018473,2]
[350232633,1737721843297,-500.0,0.00018473,2]
[350232634,1737721843307,-500.0,0.00018473,2]
[350232635,1737721843317,-500.0,0.00018473,2]
[350232636,1737721843326,-500.0,0.00018473,2]
[350232637,1737721843336,-500.0,0.00018473,2]
[350232640,1737721843345,-614.85,0.00018473,2]
[350232643,1737721843355,-500.0,0.00018473,2]
[350232646,1737721843364,-500.0,0.00018473,2]
[350232649,1737721843373,-500.0,0.00018473,2]
[350232652,1737721843382,-500.0,0.00018473,2]
[350232655,1737721843392,-500.0,0.00018473,2]
[350232657,1737721843401,-500.0,0.00018473,2]
[350232659,1737721843411,-500.0,0.00018473,2]
[350232661,1737721843420,-514.9467934,0.00018473,2]
[350232663,1737721843429,-500.0,0.00018473,2]
[350232665,1737721843438,-500.0,0.00018473,2]
[350232667,1737721843447,-500.0,0.00018473,2]
[350232668,1737721843456,-500.0,0.00018473,2]
[350232669,1737721843466,-500.0,0.00018473,2]
[350232670,1737721843475,-500.0,0.00018473,2]
[350232671,1737721843484,-500.0,0.00018473,2]
[350232672,1737721843494,-500.0,0.00018473,2]
[350232673,1737721843504,-500.0,0.00018473,2]
[350232674,1737721843513,-500.0,0.00018473,2]
[350232675,1737721843523,-528.92,0.00018473,2]
[350232676,1737721843532,-344.42594496,0.00018473,2]
[350232677,1737721843542,-500.0,0.00018473,2]
[350232678,1737721843551,-500.0,0.00018473,2]
[350232679,1737721843561,-1024.12,0.00018473,2]
[350232680,1737721843571,-500.0,0.00018473,2]
[350232681,1737721843580,-416.38545026,0.00018473,2]
[350232682,1737721843590,-500.0,0.00018473,2]
[350232683,1737721843599,-500.0,0.00018473,2]
[350232684,1737721843609,-500.0,0.00018473,2]
[350232685,1737721843619,-500.0,0.00018473,2]
[350232686,1737721843628,-500.0,0.00018473,2]
[350232687,1737721843638,-500.0,0.00018473,2]
[350232688,1737721843647,-500.0,0.00018473,2]
[350232689,1737721843657,-500.0,0.00018473,2]
[350232690,1737721843666,-500.0,0.00018473,2]
[350232691,1737721843675,-1226.44,0.00018473,2]
[350232692,1737721843685,-500.0,0.00018473,2]
[350232693,1737721843695,-1181.06,0.00018473,2]
[350232694,1737721843704,-632.29,0.00018473,2]
[350232695,1737721843814,-500.0,0.00018473,2]
[350232696,1737721843836,-500.0,0.00018473,2]
[350232697,1737721843846,-500.0,0.00018473,2]
[350232698,1737721843855,-500.0,0.00018473,2]
[350232699,1737721843864,-802.52,0.00018473,2]
[350232700,1737721843874,-500.0,0.00018473,2]
[350232701,1737721843886,-505.62005127,0.00018473,2]
[350232702,1737721843896,-891.55,0.00018473,2]
[350232703,1737721843906,-500.0,0.00018473,2]
[350232704,1737721843915,-698.24,0.00018473,2]
[350232705,1737721843925,-500.0,0.00018473,2]
[350232706,1737721843935,-946.37,0.00018473,2]
[350232707,1737721843944,-585.14,0.00018473,2]
[350232708,1737721843953,-500.0,0.00018473,2]
[350232709,1737721843963,-500.0,0.00018473,2]
[350232710,1737721843973,-829.67,0.00018473,2]
[350232711,1737721843982,-500.0,0.00018473,2]
[350232712,1737721843992,-500.0,0.00018473,2]
[350232713,1737721844001,-500.0,0.00018473,2]
[350232714,1737721844010,-538.05,0.00018473,2]
[350232715,1737721844019,-516.40983848,0.00018473,2]
[350232716,1737721844028,-500.0,0.00018473,2]
[350232717,1737721844038,-500.0,0.00018473,2]
[350232718,1737721844048,-491.87507469,0.00018473,2]
[350232719,1737721844058,-516.96,0.00018473,2]
[350232720,1737721844068,-500.0,0.00018473,2]
[350232721,1737721844078,-500.0,0.00018473,2]
[350232722,1737721844088,-500.0,0.00018473,2]
[350232723,1737721844098,-500.0,0.00018473,2]
[350232724,1737721844107,-500.0,0.00018473,2]
[350232725,1737721844116,-500.0,0.00018473,2]
[350232726,1737721844126,-500.0,0.00018473,2]
[350232727,1737721844136,-803.16,0.00018473,2]
[350232728,1737721844146,-500.0,0.00018473,2]
[350232729,1737721844156,-500.0,0.00018473,2]
[350232730,1737721844165,-637.12696528,0.00018473,2]
[350232731,1737721844175,-500.0,0.00018473,2]
[350232732,1737721844185,-500.0,0.00018473,2]
[350232733,1737721844194,-500.0,0.00018473,2]
[350232734,1737721844204,-500.0,0.00018473,2]
[350232735,1737721844214,-500.0,0.00018473,2]
[350232736,1737721844224,-500.0,0.00018473,2]
[350232737,1737721844234,-500.0,0.00018473,2]
[350232738,1737721844245,-500.0,0.00018473,2]
[350232739,1737721844254,-500.0,0.00018473,2]
[350232740,1737721844263,-500.0,0.00018473,2]
[350232741,1737721844273,-500.0,0.00018473,2]
[350232742,1737721844282,-500.0,0.00018473,2]
[350232743,1737721844291,-500.0,0.00018473,2]
[350232744,1737721844302,-500.0,0.00018473,2]
[350232745,1737721844311,-509.13852705,0.00018473,2]
[350232746,1737721844320,-500.0,0.00018473,2]
[350232747,1737721844330,-503.43955934,0.00018473,2]
[350232748,1737721844340,-500.0,0.00018473,2]
[350232749,1737721844350,-500.0,0.00018473,2]
[350232750,1737721844359,-500.0,0.00018473,2]
[350232751,1737721844369,-500.0,0.00018473,2]
[350232752,1737721844380,-500.0,0.00018473,2]
[350232753,1737721844390,-500.0,0.00018473,2]
[350232754,1737721844399,-174.29077149,0.00018473,2]
[350232755,1737721844407,-500.0,0.00018473,2]
[350232756,1737721844416,-500.0,0.00018473,2]
[350232757,1737721844426,-670.82,0.00018473,2]
[350232758,1737721844435,-500.0,0.00018473,2]
[350232759,1737721844444,-500.0,0.00018473,2]
[350232760,1737721844453,-500.0,0.00018473,2]
[350232761,1737721844462,-889.83,0.00018473,2]
[350232762,1737721844471,-500.0,0.00018473,2]
[350232763,1737721844482,-500.0,0.00018473,2]
[350232764,1737721844491,-465.57628947,0.00018473,2]
[350232765,1737721844502,-1056.35,0.00018473,2]
[350232766,1737721844510,-412.55863366,0.00018473,2]
[350232767,1737721844519,-500.0,0.00018473,2]
[350232768,1737721844529,-500.0,0.00018473,2]
[350232769,1737721844538,-500.0,0.00018473,2]
[350232770,1737721844548,-500.0,0.00018473,2]
[350232771,1737721844557,-500.0,0.00018473,2]
[350232772,1737721844567,-500.0,0.00018473,2]
[350232773,1737721844576,-500.0,0.00018473,2]
[350232774,1737721844585,-500.0,0.00018473,2]
[350232775,1737721844595,-500.0,0.00018473,2]
[350232776,1737721844604,-500.0,0.00018473,2]
[350232777,1737721844614,-500.0,0.00018473,2]
[350232778,1737721844623,-307.82192045,0.00018473,2]
[350232779,1737721844632,-500.0,0.00018473,2]
[350232780,1737721844641,-628.0,0.00018473,2]
[350232781,1737721844651,-500.0,0.00018473,2]
[350232782,1737721844660,-500.0,0.00018473,2]
[350232783,1737721844670,-1139.37,0.00018473,2]
[350232784,1737721844680,-500.0,0.00018473,2]
[350232785,1737721844690,-500.0,0.00018473,2]
[350232786,1737721844699,-880.02,0.00018473,2]
[350232787,1737721844709,-593.40537886,0.00018473,2]
[350232788,1737721844718,-500.0,0.00018473,2]
[350232789,1737721844728,-500.0,0.00018473,2]
[350232790,1737721844737,-573.56,0.00018473,2]
[350232791,1737721844746,-500.0,0.00018473,2]
[350232792,1737721844755,-500.0,0.00018473,2]
[350232793,1737721844764,-1170.0,0.00018473,2]
[350232794,1737721844773,-500.0,0.00018473,2]
[350232795,1737721844782,-500.0,0.00018473,2]
[350232796,1737721844791,-500.0,0.00018473,2]
[350232797,1737721844800,-1046.71,0.00018473,2]
[350232798,1737721844809,-500.0,0.00018473,2]
[350232799,1737721844819,-502.52943397,0.00018473,2]
[350232800,1737721844828,-500.0,0.00018473,2]
[350232801,1737721844837,-942.51,0.00018473,2]
[350232802,1737721844847,-500.0,0.00018473,2]
[350232803,1737721844856,-660.1,0.00018473,2]
[350232804,1737721844865,-500.0,0.00018473,2]
[350232805,1737721844874,-500.0,0.00018473,2]
[350232806,1737721844887,-500.0,0.00018473,2]
[350232807,1737721844897,-500.0,0.00018473,2]
[350232808,1737721844906,-1179.36,0.00018473,2]
[350232809,1737721844915,-500.0,0.00018473,2]
[350232810,1737721844925,-500.0,0.00018473,2]
[350232811,1737721844934,-500.0,0.00018473,2]
[350232812,1737721844943,-632.79,0.00018473,2]
[350232813,1737721844952,-524.37,0.00018473,2]
[350232814,1737721844962,-500.0,0.00018473,2]
[350232815,1737721844972,-1525.25,0.00018473,2]
[350232816,1737721844981,-500.0,0.00018473,2]
[350232817,1737721844990,-2221.45,0.00018473,2]
[350232818,1737721844999,-500.0,0.00018473,2]
[350232819,1737721845008,-500.0,0.00018473,2]
[350232820,1737721845017,-2496.52,0.00018473,2]
[350232821,1737721845026,-500.0,0.00018473,2]
[350232822,1737721845035,-5045.17,0.00018473,2]
[350232823,1737721845045,-695.91,0.00018473,2]
[350232824,1737721845054,-500.0,0.00018473,2]
[350232825,1737721845063,-500.0,0.00018473,2]
[350232826,1737721845073,-151.0,0.00018473,2]
[350232827,1737721845083,-500.0,0.00018473,2]
[350232828,1737721845091,-500.0,0.00018473,2]
[350232829,1737721845100,-1062.87,0.00018473,2]
[350232830,1737721845110,-500.0,0.00018473,2]
[350232831,1737721845119,-500.0,0.00018473,2]
[350232832,1737721845129,-500.0,0.00018473,2]
[350232833,1737721845138,-500.0,0.00018473,2]
[350232834,1737721845147,-666.12,0.00018473,2]
[350232835,1737721845156,-500.0,0.00018473,2]
[350232836,1737721845165,-500.0,0.00018473,2]
[350232837,1737721845174,-500.0,0.00018473,2]
[350232838,1737721845183,-500.0,0.00018473,2]
[350232839,1737721845192,-500.0,0.00018473,2]
[350232840,1737721845202,-500.0,0.00018473,2]
[350232841,1737721845212,-604.7,0.00018473,2]
[350232842,1737721845221,-971.0,0.00018473,2]
[350232843,1737721845230,-500.0,0.00018473,2]
[350232844,1737721845239,-500.0,0.00018473,2]
[350232845,1737721845248,-500.0,0.00018473,2]
[350232846,1737721845257,-500.0,0.00018473,2]
[350232847,1737721845266,-1522.78,0.00018473,2]
[350232848,1737721845275,-151.0,0.00018473,2]
[350232849,1737721845284,-500.0,0.00018473,2]
[350232850,1737721845293,-500.0,0.00018473,2]
[350232851,1737721845302,-500.0,0.00018473,2]
[350232852,1737721845312,-310.38905405,0.00018473,2]
[350232853,1737721845322,-472.11551083,0.00018473,2]
[350232854,1737721845331,-532.28218952,0.00018473,2]
[350232855,1737721845340,-500.0,0.00018473,2]
[350232856,1737721845350,-500.0,0.00018473,2]
[350232857,1737721845359,-616.55150993,0.00018473,2]
[350232858,1737721845368,-1000.0,0.00018473,2]
[350232859,1737721845378,-640.49,0.00018473,2]
[350232860,1737721845386,-500.0,0.00018473,2]
[350232861,1737721845395,-675.31,0.00018473,2]
[350232862,1737721845404,-500.0,0.00018473,2]
[350232863,1737721845413,-500.0,0.00018473,2]
[350232864,1737721845422,-500.0,0.00018473,2]
[350232865,1737721845432,-500.0,0.00018473,2]
[350232866,1737721845442,-162.755205,0.00018473,2]
[350232867,1737721845451,-162.755205,0.00018473,2]
[350232868,1737721845460,-500.0,0.00018473,2]
[350232869,1737721845469,-2480.64,0.00018473,2]
[350232870,1737721845478,-500.0,0.00018473,2]
[350232871,1737721845487,-889.4,0.00018473,2]
[350232872,1737721845497,-500.0,0.00018473,2]
[350232873,1737721845506,-500.0,0.00018473,2]
[350232874,1737721845515,-500.0,0.00018473,2]
[350232875,1737721845524,-500.0,0.00018473,2]
[350232876,1737721845533,-500.0,0.00018473,2]
[350232877,1737721845543,-500.0,0.00018473,2]
[350232878,1737721845552,-500.0,0.00018473,2]
[350232879,1737721845561,-151.0,0.00018473,2]
[350232880,1737721845570,-2169.68,0.00018473,2]
[350232881,1737721845580,-500.0,0.00018473,2]
[350232882,1737721845590,-605.22,0.00018473,2]
[350232883,1737721845599,-600.96043297,0.00018474,2]
[350232884,1737721845609,-501.74836022,0.00018474,2]
[350232885,1737721845618,-433.55847255,0.00018474,2]
[350232886,1737721845627,-360.1567603,0.00018474,2]
[350232887,1737721845636,-500.0,0.00018474,2]
[350232889,1737721845645,-500.0,0.00018474,2]
[350232891,1737721845655,-501.29558081,0.00018474,2]
[350232893,1737721845664,-500.0,0.00018474,2]
[350232906,1737721845771,-500.0,0.00018474,2]
[350232909,1737721845791,-497.42049302,0.00018474,2]
[350232910,1737721845803,-500.0,0.00018474,2]
[350232911,1737721845813,-500.0,0.00018474,2]
[350232912,1737721845822,-500.0,0.00018474,2]
[350232913,1737721845832,-500.0,0.00018474,2]
[350232915,1737721845842,-500.0,0.00018474,2]
[350232917,1737721845852,-500.0,0.00018474,2]
[350232918,1737721845861,-512.56859004,0.00018474,2]
[350232919,1737721845871,-500.0,0.00018474,2]
[350232920,1737721845884,-500.0,0.00018474,2]
[350232921,1737721845893,-633.84442698,0.00018474,2]
[350232922,1737721845902,-500.0,0.00018474,2]
[350232923,1737721845912,-500.0,0.00018474,2]
[350232924,1737721845923,-500.0,0.00018474,2]
[350232925,1737721845933,-500.0,0.00018474,2]
[350232926,1737721845942,-500.0,0.00018474,2]
[350232927,1737721845952,-500.0,0.00018474,2]
[350232928,1737721845962,-500.0,0.00018474,2]
[350232929,1737721845972,-500.0,0.00018474,2]
[350232930,1737721845981,-500.0,0.00018474,2]
[350232931,1737721845990,-504.95392022,0.00018474,2]
[350232932,1737721846000,-500.0,0.00018474,2]
[350232933,1737721846009,-500.0,0.00018474,2]
[350232934,1737721846019,-500.0,0.00018474,2]
[350232935,1737721846028,-500.0,0.00018474,2]
[350232936,1737721846037,-500.0,0.00018474,2]
[350232937,1737721846047,-500.0,0.00018474,2]
[350232938,1737721846056,-500.0,0.00018474,2]
[350232939,1737721846066,-500.0,0.00018474,2]
[350232940,1737721846076,-528.76169656,0.00018474,2]
[350232941,1737721846086,-500.0,0.00018474,2]
[350232942,1737721846095,-500.0,0.00018474,2]
[350232943,1737721846105,-500.0,0.00018474,2]
[350232944,1737721846114,-500.0,0.00018474,2]
[350232945,1737721846123,-500.0,0.00018474,2]
[350232946,1737721846133,-500.0,0.00018474,2]
[350232947,1737721846142,-500.0,0.00018474,2]
[350232948,1737721846152,-500.0,0.00018474,2]
[350232949,1737721846162,-172.164983,0.00018474,2]
[350232950,1737721846172,-1090.0,0.00018474,2]
[350232951,1737721846182,-172.164983,0.00018474,2]
[350232952,1737721846191,-151.744972,0.00018474,2]